Cogmind - Beta 16.1 @@@ ROGUE MODE // 2026.05.03 @ 08:52:34 Player: Thqwib-Linux Result: Self-destructed Performance ------------- Evolutions (2) 1000 Regions Visited (5) 1000 Robots Destroyed (25) 125 Value Destroyed (450) 450 Prototype IDs (8) 160 Alien Tech Used (0) 0 Bonus (0) 0 TOTAL SCORE: 2735 Bonus ------- None Cogmind --------- Core Integrity 550/550 Matter 232/300 Energy 125/125 System Corruption 0% Temperature Cool (0) Movement Rolling (130) Ox2 Location -8/Materials Parts ------- > --- POWER (1) -------- Light Ion Engine > --- PROPULSION (4) --- Light Treads Light Treads Light Treads Compact Wheel > --- UTILITY (4) ------ Large Storage Unit Targeting Computer Improved Medium Armor Plating > --- WEAPON (2) ------- Heavy Assault Rifle Gauss Rifle > --- INVENTORY (15) --- Light Ion Engine Flight Unit Flight Unit Flight Unit Flight Unit Improved VTOL Module Experimental Sensor Array ECM Suite Small Laser Light Assault Rifle Light Assault Rifle Light Assault Rifle Peak State ------------ > --- POWER ------------ Light Ion Engine > --- PROPULSION ------- Light Treads Compact Wheel > --- UTILITY ---------- Large Storage Unit Experimental Sensor Array Targeting Computer Force Booster > --- WEAPON ----------- Heavy Assault Rifle Gauss Rifle > --- INVENTORY -------- Light Ion Engine Light Treads Light Treads Flight Unit Flight Unit Flight Unit Flight Unit ECM Suite Improved Medium Armor Plating Small Laser Light Assault Rifle Light Assault Rifle Light Assault Rifle [Rating: 25] Favorites ----------- Power Ion Engine Engine Ion Engine Propulsion Light Treads Treads Light Treads Leg Aluminum Leg Wheel Compact Wheel Flight Unit Improved VTOL Module Utility Large Storage Unit Device Experimental Sensor Array Storage Large Storage Unit Processor Targeting Computer Protection Improved Medium Armor Plating Weapon Light Assault Rifle Ballistic Gun Light Assault Rifle Build | -11 -10 -10 -10 -9 -8 ------- Run | Yrd Mat Min Exi Min Mat Slots Evolved 4 | . . . . . 4 Power . | . . . . . . Propulsion 2 | . . . . . 2 Utility 2 | . . . . . 2 Weapon . | . . . . . . Parts Attached 22 | 3 5 . . 7 7 Power 1 | . . . . 1 . Engine 1 | . . . . 1 . Core . | . . . . . . Reactor . | . . . . . . Propulsion 10 | 3 2 . . 1 4 Treads 4 | 1 1 . . . 2 Leg . | . . . . . . Wheel 5 | 2 1 . . 1 1 Hover . | . . . . . . Flight 1 | . . . . . 1 Utility 5 | . 2 . . . 3 Device 2 | . . . . . 2 Storage 1 | . 1 . . . . Processor 1 | . 1 . . . . Hackware . | . . . . . . Protection 1 | . . . . . 1 Artifact . | . . . . . . Weapon 6 | . 1 . . 5 . Energy Gun . | . . . . . . Energy Cannon . | . . . . . . Ballistic Gun 6 | . 1 . . 5 . Ballistic Cannon . | . . . . . . Launcher . | . . . . . . Special Weapon . | . . . . . . Impact Weapon . | . . . . . . Slashing Weapon . | . . . . . . Piercing Weapon . | . . . . . . Special Melee Weapon . | . . . . . . Unidentified Prototypes 2 | . . . . . 2 Parts Lost 2 | . 1 . . 1 . Power . | . . . . . . Propulsion 2 | . 1 . . 1 . Utility . | . . . . . . Weapon . | . . . . . . Highest Loss Streak 1 | . 1 . . 1 . To Critical Strikes . | . . . . . . Average Backups 9 | 4 7 9 10 11 11 Power 1 | 1 1 1 1 1 1 Propulsion 4 | 2 3 5 5 6 4 Utility . | . . . . 1 2 Weapon 3 | 1 2 3 4 3 4 Tool/Special . | . . . . . . Unused Backups 14 | . 5 . . . 9 Power 2 | . 1 . . . 1 Propulsion 5 | . 1 . . . 4 Utility 2 | . 1 . . . 1 Weapon 5 | . 2 . . . 3 Tool/Special . | . . . . . . Average Slot Usage (%) 94 | . 93 100 76 98 87 Engine 13 | . 14 14 14 14 9 Treads 14 | . 14 14 14 14 24 Wheel 13 | . 13 14 14 14 9 Storage 13 | . 14 14 14 14 9 Processor 11 | . 8 14 14 14 9 Ballistic Gun 24 | . 28 28 5 26 18 Peak Build Rating 25 | 6 8 7 7 13 25 Average Rating 8 | 6 6 7 6 9 18 On Entrance 7 | 6 6 7 7 6 13 Avg Prop Armor Cover (%) 14 | 14 14 14 19 13 14 Naked Turns . | . . . . . . Heaviest Build 37 | 12 32 27 27 30 37 Greatest Support 60 | 16 16 16 16 16 60 Greatest Overweight (x) 2 | 1 1 1 1 1 2 Average Overweight (x) . | . . 1 1 1 1 Largest Inventory Capacity 15 | 8 15 15 15 15 15 Average Capacity 14 | 8 12 15 15 15 15 Most Carried 15 | 6 10 9 11 15 15 Average Carried 9 | 4 7 9 10 12 11 Final Capacity 15 | 8 15 15 15 15 15 Final Carried 15 | 4 9 9 11 15 12 Class Distribution -------------------- 90% | Mutant 9% | Scavenger-Mutant Dominant Class ---------------- Mutant | -10/Materials Mutant | -10/Mines Mutant | -10/Exiles Mutant | -9/Mines Mutant | -8/Materials Resources | -11 -10 -10 -10 -9 -8 ----------- Run | Yrd Mat Min Exi Min Mat Matter Collected 606 | 183 218 16 . 111 78 Remotely . | . . . . . . Salvage Created 796 | 81 460 . . 177 78 Parts 52 | 4 32 . . 13 3 Haulers Intercepted 2 | . 2 . . . . Recyclers Shooed 2 | 1 1 . . . . Parts Field Recycled . | . . . . . . Retrieved Matter . | . . . . . . Parts Self-Destructed . | . . . . . . Prevented . | . . . . . . Parts Restored . | . . . . . . Kills | -11 -10 -10 -10 -9 -8 ------- Run | Yrd Mat Min Exi Min Mat Combat Hostiles Destroyed 15 | . 9 . . 6 . Guns 15 | . 9 . . 6 . Classes Destroyed 7 | 2 4 . . 1 . Tunneler 2 | 1 . . . 1 . Hauler 2 | . 2 . . . . Recycler 3 | 1 1 . . . 1 Watcher 3 | . 2 . . . 1 Swarmer 7 | . 3 . . 4 . Grunt 7 | . 6 . . 1 . Brawler 1 | . . . . 1 . Best Kill Streak 4 | 2 3 . . 4 2 Combat Bots Only 4 | . 3 . . 4 . Max Kills in Single Turn 1 | 1 1 . . 1 1 Gunslinging . | . . . . . . Exploded . | . . . . . . Melee . | . . . . . . Uniques/NPCs Destroyed . | . . . . . . Combat | -11 -10 -10 -10 -9 -8 -------- Run | Yrd Mat Min Exi Min Mat Hostile Shots Fired 76 | . 41 . . 29 6 Missed 19 | . 10 . . 6 3 Hits 57 | . 31 . . 23 3 Projectile 57 | . 31 . . 23 3 Damage Taken 588 | . 330 . . 211 47 Core 89 | . 66 . . 23 . Absorbed by Shields . | . . . . . . Regen/Repaired (Parts) 8 | . 8 . . . . Core Remaining (%) 82 | 100 . . . 64 . Volleys Fired 82 | 9 49 . . 16 8 Largest 2 | 2 2 . . 2 2 Hottest 51 | 40 40 . . 43 51 Shots Fired 165 | 18 98 2 . 31 16 Gun 165 | 18 98 2 . 31 16 Cannon . | . . . . . . Launcher . | . . . . . . Special . | . . . . . . Kinetic 165 | 18 98 2 . 31 16 Thermal . | . . . . . . Explosive . | . . . . . . Electromagnetic . | . . . . . . Robot Hit Streak 12 | 9 12 . . 8 5 Robot Miss Streak 4 | 3 4 . . 3 2 Penetration Max . | . . . . . . Secondary Targets 2 | . . . . 2 . Max Gunslinging Chain 1 | . . . . 1 . Shots Hit Robots 106 | 12 63 . . 20 11 Core Hits 51 | 4 31 . . 10 6 Critical Kills . | . . . . . . Critical Parts Destroyed . | . . . . . . Critical Strikes . | . . . . . . Melee Attacks . | . . . . . . Impact . | . . . . . . Slashing . | . . . . . . Piercing . | . . . . . . Sneak Attacks . | . . . . . . Combat Hostiles . | . . . . . . Follow-up Attacks . | . . . . . . Damage Inflicted 973 | 101 528 . . 159 185 Guns 973 | 101 528 . . 159 185 Cannons . | . . . . . . Explosions . | . . . . . . Melee . | . . . . . . Ramming . | . . . . . . Kinetic 973 | 101 528 . . 159 185 Thermal . | . . . . . . Explosive . | . . . . . . Electromagnetic . | . . . . . . Impact . | . . . . . . Slashing . | . . . . . . Piercing . | . . . . . . Highest Corruption 2 | . 2 2 2 2 . Average Corruption 2 | . 2 2 2 2 . Corruption Purged . | . . . . . . Corruption Blocked . | . . . . . . Effects 25 | . 5 7 2 11 . Message Errors 7 | . 1 2 . 4 . Matter Fused 4 | . 1 1 1 1 . Heat Flow Errors 2 | . . 1 . 1 . Energy Discharges 2 | . . . . 2 . Data Loss (minor) 3 | . 1 1 . 1 . Data Loss (major) 1 | . . . 1 . . Misfires 3 | . 1 2 . . . Alerts 1 | . . . . 1 . Weapon Failures 2 | . 1 . . 1 . Overload Shots . | . . . . . . Overflow Damage . | . . . . . . Projectiles . | . . . . . . Explosions . | . . . . . . Melee . | . . . . . . Knockbacks . | . . . . . . Impact . | . . . . . . Kinetic . | . . . . . . Secondary . | . . . . . . Self-Inflicted Damage . | . . . . . . Shots . | . . . . . . Rammed . | . . . . . . Targets Rammed . | . . . . . . Kicked . | . . . . . . Crushed . | . . . . . . Highest Temperature 123 | . 18 123 . 107 . Average Temperature 19 | . 8 123 . 35 . Received Heat Transfer 156 | . 126 . . 30 . Siege Activations . | . . . . . . Martial Activations . | . . . . . . Shielding Activations . | . . . . . . Robots Disrupted . | . . . . . . Combat Hostiles . | . . . . . . Robots Corrupted . | . . . . . . Combat Hostiles . | . . . . . . Parts Fried . | . . . . . . Impact Corruptions . | . . . . . . Robots Melted . | . . . . . . Combat Hostiles . | . . . . . . Parts Melted . | . . . . . . Heat Transferred . | . . . . . . Parts Sabotaged . | . . . . . . Parts Stolen . | . . . . . . Parts Stripped . | . . . . . . Power Chain Reactions . | . . . . . . Alert | -11 -10 -10 -10 -9 -8 ------- Run | Yrd Mat Min Exi Min Mat Maximum Alert Level . | . . . . . . Low Security (%) 100 | 100 100 100 . 100 100 Level 1 . | . . . . . . Level 2 . | . . . . . . Level 3 . | . . . . . . Level 4 . | . . . . . . Level 5 . | . . . . . . High Security . | . . . . . . Max Security . | . . . . . . Peak Influence 100 | 5 100 19 . 80 10 Initial 19 | . 3 19 . . . Average 22 | 1 38 1 . 21 1 Influence Increases 553 | 10 346 . . 145 52 Destroy 0b10 Robot/C 300 | . 180 . . 120 . Destroy 0b10 Robot/NC 50 | 10 25 . . 5 10 Destroy Leader 80 | . 58 . . 20 2 Successful Hack 18 | . 8 . . . 10 Select Force Hacks 90 | . 60 . . . 30 Lose Combat Pursuer 15 | . 15 . . . . Influence Decreases 523 | 5 301 50 . 145 22 Entered New Map 33 | . 2 31 . . . Time Decay 440 | 5 259 19 . 135 22 Lost Part 20 | . 10 . . 10 . Purge Threat 30 | . 30 . . . . Squads Dispatched 5 | . 4 . . . 1 Investigation 4 | . 3 . . . 1 Extermination . | . . . . . . Reinforcement 1 | . 1 . . . . Assault . | . . . . . . Garrison . | . . . . . . Intercept . | . . . . . . Searches Triggered . | . . . . . . Construction Impeded . | . . . . . . Haulers Reinforced . | . . . . . . Active Scanning Responses . | . . . . . . Cargo Convoy Interrupts . | . . . . . . Stealth | -11 -10 -10 -10 -9 -8 --------- Run | Yrd Mat Min Exi Min Mat Distress Signals . | . . . . . . Communications Jammed . | . . . . . . Distress Signals . | . . . . . . Times Spotted 26 | . 17 . . 6 3 Peak Tracking Total 4 | . 4 . . 4 2 Tactical Retreats 1 | . 1 . . . . Traps | -11 -10 -10 -10 -9 -8 ------- Run | Yrd Mat Min Exi Min Mat Traps Triggered 1 | . 1 . . . . Indirectly . | . . . . . . Trap Hack Attempts . | . . . . . . Triggered . | . . . . . . Disarmed . | . . . . . . Reprogrammed . | . . . . . . Reused . | . . . . . . Traps Extracted . | . . . . . . Installed . | . . . . . . Triggered . | . . . . . . Machines | -11 -10 -10 -10 -9 -8 ---------- Run | Yrd Mat Min Exi Min Mat Machines Disabled . | . . . . . . Max in Single Turn . | . . . . . . Machines Repaired . | . . . . . . Machines Dismantled . | . . . . . . Machines Sabotaged . | . . . . . . Overloaded Fab Kills . | . . . . . . Hacking | -11 -10 -10 -10 -9 -8 --------- Run | Yrd Mat Min Exi Min Mat Machines Accessed 11 | . 7 . 1 1 2 Terminals 5 | . 4 . . . 1 Fabricators . | . . . . . . Repair Stations 1 | . 1 . . . . Recycling Units 3 | . 2 . . . 1 Scanalyzers . | . . . . . . Garrison Access . | . . . . . . Total Hacks 22 | . 15 . 1 1 5 Successful 16 | . 10 . 1 1 4 Failed 6 | . 5 . . . 1 Catastrophic 1 | . 1 . . . . Database Lockouts . | . . . . . . Manual 12 | . 8 . . . 4 Terminals 12 | . 8 . . . 4 Fabricators . | . . . . . . Repair Stations 5 | . 5 . . . . Recycling Units 3 | . 2 . . . 1 Scanalyzers . | . . . . . . Garrison Access . | . . . . . . Terminal Hacks 7 | . 3 . 1 1 2 Record 1 | . . . 1 . . Prototype ID Bank 3 | . 2 . . . 1 Open Door 1 | . . . . 1 . Branch Access Points 1 | . . . . . 1 Unreport Threat 1 | . 1 . . . . Fabricator Hacks . | . . . . . . Repair Station Hacks 2 | . 2 . . . . Scan Component 1 | . 1 . . . . Repair 1 | . 1 . . . . Recycling Unit Hacks . | . . . . . . Scanalyzer . | . . . . . . Garrison Access Hacks . | . . . . . . Unauthorized Hacks 7 | . 5 . . . 2 Terminals 4 | . 3 . . . 1 Assimilate 1 | . 1 . . . . Botnet 3 | . 2 . . . 1 Fabricators . | . . . . . . Repair Stations . | . . . . . . Recycling Units 3 | . 2 . . . 1 Tunnel 3 | . 2 . . . 1 Scanalyzers . | . . . . . . Garrison Access . | . . . . . . Data Cores Recovered . | . . . . . . Used . | . . . . . . Hacking Detections 6 | . 5 . . . 1 Full Trace Events 1 | . 1 . . . . Feedback Events . | . . . . . . Feedback Blocked . | . . . . . . Robot Schematics Acquired . | . . . . . . Robots Built . | . . . . . . Authchips . | . . . . . . Time . | . . . . . . Total Robot Build Rating . | . . . . . . Part Schematics Acquired . | . . . . . . Parts Built . | . . . . . . Authchips . | . . . . . . Time . | . . . . . . Total Part Build Rating . | . . . . . . Part Studies Acquired . | . . . . . . Parts Repaired 1 | . 1 . . . . Time 26 | . 26 . . . . Parts Recycled . | . . . . . . Recycled Matter . | . . . . . . Retrieved Matter . | . . . . . . Retrieved Components . | . . . . . . Parts Scanalyzed . | . . . . . . Part Schematics Acquired . | . . . . . . Parts Damaged . | . . . . . . Bothacking | -11 -10 -10 -10 -9 -8 ------------ Run | Yrd Mat Min Exi Min Mat Used RIF Installer . | . . . . . . Robots Hacked . | . . . . . . Non-combat . | . . . . . . Combat . | . . . . . . Robot Hacks Applied . | . . . . . . Relay Couplers Released . | . . . . . . Fabnet Peak Effective % . | . . . . . . Robots Rewired . | . . . . . . Allies Hacked . | . . . . . . Hacks Repelled . | . . . . . . Allies | -11 -10 -10 -10 -9 -8 -------- Run | Yrd Mat Min Exi Min Mat Total Allies 1 | . 1 . . . . Largest Group 1 | . 1 . . . . Highest-Rated Group 10 | . 10 . . . . Highest-Rated Ally 10 | . 10 . . . . Total Orders . | . . . . . . Ally Attacks . | . . . . . . Total Damage . | . . . . . . Kills . | . . . . . . Allies Corrupted . | . . . . . . Allies Melted . | . . . . . . Intel | -11 -10 -10 -10 -9 -8 ------- Run | Yrd Mat Min Exi Min Mat Active Infowar (turns) 3 | . . . . . 3 Sensors 3 | . . . . . 3 Robot Analysis Total . | . . . . . . Derelict Logs Recovered 3 | . . 1 . 2 . Drone Launches . | . . . . . . Drone Recoveries . | . . . . . . Exploration | -11 -10 -10 -10 -9 -8 ------------- Run | Yrd Mat Min Exi Min Mat Turns Passed 1937 | 39 697 359 161 540 141 Spaces Moved 1292 | 9 440 313 140 314 76 Core . | . . . . . . Treads 17 | . . . . . 17 Legs . | . . . . . . Wheels 1275 | 9 440 313 140 314 59 Hover . | . . . . . . Flight . | . . . . . . Fastest Speed 95 | 95 100 115 115 115 130 Average Speed 115 | 96 112 115 115 115 136 Slowest Speed 160 | 100 115 115 115 115 160 Overloaded Moves . | . . . . . . Propulsion Burnouts . | . . . . . . Robots Hopped . | . . . . . . Potential Cave-ins . | . . . . . . Cave-ins Triggered . | . . . . . . Exploration Rate (%) 43 | 3 62 81 51 57 9 Regions Visited 5 Branch Regions 3 Pre-discovered Areas 5 | . 2 . 1 1 1 Known Exits Taken . | . . . . . . Unknown Exits Taken 5 | 1 1 1 1 1 . Scrap Searched 3 | . . 1 . 2 . Spaces Dug . | . . . . . . Terrain Destroyed . | . . . . . . Melee . | . . . . . . Projectile . | . . . . . . AOE . | . . . . . . Terrain Rammed . | . . . . . . Walls Destroyed . | . . . . . . Machines Disabled . | . . . . . . Actions | -11 -10 -10 -10 -9 -8 --------- Run | Yrd Mat Min Exi Min Mat Total 1604 | 24 564 312 141 466 97 Wait 177 | . 58 . . 119 . Move 1287 | 8 439 312 139 313 76 Hop . | . . . . . . Pick Up 15 | 1 7 . . 6 1 Fast Attach 3 | . 3 . . . . Attach 9 | . 1 . . 3 5 Detach 5 | . 1 . 2 . 2 Swap 13 | 3 2 . . 5 3 Drop 13 | 3 4 . . 4 2 Fire 82 | 9 49 . . 16 8 Melee . | . . . . . . Ram . | . . . . . . Kick . | . . . . . . Crush . | . . . . . . Escape Stasis . | . . . . . . Rewire . | . . . . . . Trap . | . . . . . . Miscellaneous . | . . . . . . Route ------- -11/Scrapyard -10/Materials (discovered 4 exits: [*Mat x2] / [*Min] / [*Sub]) -10/Mines (discovered 3 exits: [*Mat x2] / *Exi) -10/Exiles -9/Mines -8/Materials History --------- Turn | Location | Event 5 | -11/Scrapyard | Discovered new exit (range 3) 40 | -11/Scrapyard | Entered Materials 78 | -10/Materials | Repaired Com. Wheel 290 | -10/Materials | Discovered new exit (range 13) 324 | -10/Materials | Build established: Mutant 454 | -10/Materials | Discovered new exit (range 10) 529 | -10/Materials | Discovered new exit (range 6) 701 | -10/Materials | Discovered new exit (range 12) 737 | -10/Materials | Entered Mines 936 | -10/Mines | Discovered new exit (range 9) 1043 | -10/Mines | Discovered new exit (range 5) 1092 | -10/Mines | Deemed a non-threat by the Exiles lab entrance 1092 | -10/Mines | Discovered new exit (range 5) 1096 | -10/Mines | Entered Exiles 1124 | -10/Exiles | Met 8R-AWN 1146 | -10/Exiles | Met EX-HEX 1176 | -10/Exiles | Met EX-BIN 1189 | -10/Exiles | Met EX-DEC 1195 | -10/Exiles | Learned location of Zion (-6) 1248 | -10/Exiles | Discovered new exit (range 10) 1257 | -10/Exiles | Entered Mines 1412 | -9/Mines | Found a damaged Exp. Sensor Array with a note attached 1414 | -9/Mines | Found Prototype Device 1450 | -9/Mines | Discovered new exit (range 14) 1520 | -9/Mines | Learned Materials garrison access intel 1577 | -9/Mines | Met a Derelict who couldn't figure out how to use a Trap Extractor 1797 | -9/Mines | Entered Materials 1797 | -8/Materials | Evolved 4 slots: Propulsion x2, Utility x2 1797 | -8/Materials | Identified Exp. Sensor Array 1798 | -8/Materials | Loaded intel: 1 garrison access location 1938 | -8/Materials | Self-destructed Last Messages --------------- 01914_ C-30 ARC bursts open, deploying its payload. 01914_ H-55 Commando unfolds itself. 01915_ Penetrated by Slug. 01921_ Slug penetrates H-55 Commando. 01921_ Slug penetrates R-06 Scavenger. 01921_ R-06 Scavenger destroyed. 01923_ H-55 Commando suffers critical hit (Burn). 01923_ H-55 Commando destroyed. 01927_ Dropped Com. Wheel. 01929_ Acquired 23 matter. 01930_ R-06 Scavenger collects Com. Wheel. 01933_ R-06 Scavenger collects Sml. Storage Unit. 01938_ Connecting with Recycling Unit... >>Force(Tunnel) DISCOVERED[-9/Recycling] 01938_ ALERT: Suspicious activity at Recycling Unit M002. Dispatching Investigation squad. Map ----- +----------------------------------------------------+ | ??????????????????# #??????????????????????????? | | ??????????????????# #??????????????????????????? | | ??????????????????# #??????????????????????????? | | ???????????######## ########???????????????????? | | ???????????# # # #???????????????????? | | ???????????# + + """ !#???????????????????? | | ???????????# # # """ #???????????????????? | | ???????????# # # """ !#???????????????????? | | ???????????# ?# # #???????????????????? | | ???????????# ?# # [ #???????????????????? | | ???????????#####??# ########???????????????????? | | ??????????????????# #??????????????????????????? | | ??????????????????# #??????????????????????????? | | ??????????????????# #??????????????????????????? | | ??????????????????# #??????????????????????????? | | ??????????????????# #??????????????????????????? | | ??????????????????# #??????????????????????????? | | ??????????????????# ############+??????????????? | | ??????????????????# ????????????? | | ??????????????????# ????????????? | | ??????????????????# % ????????????? | | ??????????????????# ! #############??????????????? | | ??????????????????#!%=# #??????????????????? | | ??????????????????# *!#"" #??????????????????? | | ??????????????????# #"Y #??????????????????? | | ??????????????????# #""@ #??????????????????? | | ??????????????????+ % + +??????????????????? | | ??????????????????#%" # """ #??????????????????? | | ??????????????????#" # """ #??????????????????? | | ??????????????????# # """ #??????????????????? | | ??????????????????# # #??????????????????? | | ??????????????????# # #??????????????????? | | ??????????????????# # #??????????????????? | | ??????????????????# #########??????????????????? | | ??????????????????# ??????????????????????????? | | ??????????????????# ??????????????????????????? | | ??????????????????# ??????????????????????????? | | ??????????????????# #??????????????????????????? | | ??????????????????# ???????????????????????????? | | ??????????????????# ???????????????????????????? | | ??????????????????? ???????????????????????????? | | ?????????????????????????????????????????????????? | | ?????????????????????????????????????????????????? | | ?????????????????????????????????????????????????? | | ?????????????????????????????????????????????????? | | ?????????????????????????????????????????????????? | | ?????????????????????????????????????????????????? | | ?????????????????????????????????????????????????? | | ?????????????????????????????????????????????????? | | ?????????????????????????????????????????????????? | +----------------------------------------------------+ Best States ------------- Heat Dissipation 31 Energy Generation 10 Energy Capacity 250 Matter Stores 300 Matter Capacity 300 Sight Range 16 Robot Scan Range 20 Terrain Scan Density 10 Armor Coverage 225 Evasion (%) 40 Targeting Accuracy 5 Recoil Reduction 3 Item Schematics ----------------- None Robot Schematics ------------------ None Fabricated ------------ Nothing Repaired ---------- Com. Wheel | 73% | -10/Materials Studied --------- None Alien Tech Used ----------------- None Achievements -------------- None Challenges ------------ None Game ------ Seed RefineryVariableRay Manual? 0 Play Time 00:14:22 Cumulative 273.6 hours Start 2026.05.03 @ 01:57:13 End 2026.05.03 @ 08:52:34 Sessions 2 Manual Loads 0 Difficulty Rogue Special Mode None Game No. 145 Rogue 145 Adventurer 0 Explorer 0 Win Type - Total 9 Types 5/0/2/1/0/0/0/1/0/0 Lore% 76 Gallery% 67 Achievement% 59 Wizard Run 0 Options --------- Layout 2 ASCII 0 Keyboard 1 Movement Arrows Keybinds 0 Fullscreen 2 Font 24/Terminus Map View 50x44 Zoom Use 0% Tactical HUD 1 Map Filters NONE Filters NONE Steam 1 RUN: 9a1f9b68-a843-411e-84a9-dcb71af86d22